{"text_format":"3","workbook":"xlsx","n_sheets":2,"sheets":["Мальчики","Девочки"],"not_rendered":{"defined_names":1},"read":"whole","date_system":"1900"}

{"sheet":"Мальчики","index":0,"n_rows":37,"n_cols":15,"rows_kept":37}
["№","Фамилия","Имя","Отчество","Дата рождения","Пол","Участник с ОВЗ (да/нет)","Класс обучения","Класс участия","Балл","Максимальный балл","Статус","Призёр муниципального этапа прошлого года","ФИО учителя","Место работы учителя"]
[1,"Хузятов","Ильназ","Ильхамович","2010-03-03","М","нет",5,5,76.24,100,"Победитель","нет","Закирова Гульназ Анасовна","Муниципальное бюджетное общеобразовательное учреждение \"Школа №3\" г.Набережные Челны"]
[2,"Калимуллин","Рафаэль","Русланович","2010-03-17","М","нет",5,5,69.47,100,"Призёр","нет","Закирова Гульназ Анасовна","Муниципальное бюджетное общеобразовательное учреждение \"Школа №3\" г.Набережные Челны"]
[3,"Закиров","Закир","Ильдарович","2010-02-12","М","нет",5,5,67.14,100,"Призёр","нет","Закирова Гульназ Анасовна","Муниципальное бюджетное общеобразовательное учреждение \"Школа №3\" г.Набережные Челны"]
[4,"Ромбак","Марк","Максимович","2009-04-07","М","нет",6,6,83.36,100,"Победитель","нет","Сергеев Вадим Анатольевич","Муниципальное бюджетное общеобразовательное учреждение \"Школа №3\" г.Набережные Челны"]
[5,"Ахметвалиев","Расим","Расихович","2009-05-10","М","нет",6,6,75.34,100,"Призёр","нет","Закирова Гульназ Анасовна","Муниципальное бюджетное общеобразовательное учреждение \"Школа №3\" г.Набережные Челны"]
[6,"Скакунов","Михаил","Владимирович","2009-07-17","М","нет",6,6,66.74,100,"Призёр","нет","Закирова Гульназ Анасовна","Муниципальное бюджетное общеобразовательное учреждение \"Школа №3\" г.Набережные Челны"]
[7,"Титов","Егор","Михайлович","2008-03-13","М","нет",7,7,85.36,100,"Победитель","нет","Закирова Гульназ Анасовна","Муниципальное бюджетное общеобразовательное учреждение \"Школа №3\" г.Набережные Челны"]
[8,"Сайфутдинов","Данил","Маратович","2008-04-08","М","нет",7,7,79.52,100,"Призёр","нет","Закирова Гульназ Анасовна","Муниципальное бюджетное общеобразовательное учреждение \"Школа №3\" г.Набережные Челны"]
[9,"Саубанов","Родион","Ришатович","2008-02-17","М","нет",7,7,69.16,100,"Призёр","нет","Сергеев Вадим Анатольевич","Муниципальное бюджетное общеобразовательное учреждение \"Школа №3\" г.Набережные Челны"]
[10,"Ветряков","Кирилл ","Русланович","2006-11-27","М","нет",8,8,87.47,100,"Победитель","нет","Закирова Гульназ Анасовна","Муниципальное бюджетное общеобразовательное учреждение \"Школа №3\" г.Набережные Челны"]
[11,"Сулейманов","Булат ","Рустемович","2007-09-01","М","нет",8,8,83.61,100,"Призёр","нет","Закирова Гульназ Анасовна","Муниципальное бюджетное общеобразовательное учреждение \"Школа №3\" г.Набережные Челны"]
[12,"Ганиев","Риналь","Наилевич","2007-06-18","М","нет",8,8,76.33,100,"Призёр","нет","Закирова Гульназ Анасовна","Муниципальное бюджетное общеобразовательное учреждение \"Школа №3\" г.Набережные Челны"]
[13,"Лакомкин","Станислав","Антонович","2006-01-03","М","нет",9,9,81.32,100,"Победитель","нет","Закирова Гульназ Анасовна","Муниципальное бюджетное общеобразовательное учреждение \"Школа №3\" г.Набережные Челны"]
[14,"Валиев","Раиль ","Ильмирович","2006-09-02","М","нет",9,9,78.16,100,"Призёр","нет","Закирова Гульназ Анасовна","Муниципальное бюджетное общеобразовательное учреждение \"Школа №3\" г.Набережные Челны"]
[15,"Миннахметов","Камиль ","Айдарович","2006-11-09","М","нет",9,9,73.72,100,"Призёр","нет","Закирова Гульназ Анасовна","Муниципальное бюджетное общеобразовательное учреждение \"Школа №3\" г.Набережные Челны"]
[16,"Хакимов","Радмир","Ильдарович","2005-01-07","М","нет",10,10,73.84,100,"Победитель","нет","Сергеев Вадим Анатольевич","Муниципальное бюджетное общеобразовательное учреждение \"Школа №3\" г.Набережные Челны"]
[17,"Хаммадиев","Эмиль","Раилевич","2005-10-18","М","нет",10,10,70.36,100,"Призёр","нет","Сергеев Вадим Анатольевич","Муниципальное бюджетное общеобразовательное учреждение \"Школа №3\" г.Набережные Челны"]
[18,"Казанцев","Тимур","Валерьевич","2005-04-04","М","нет",10,10,71.67,100,"Призёр","нет","Сергеев Вадим Анатольевич","Муниципальное бюджетное общеобразовательное учреждение \"Школа №3\" г.Набережные Челны"]
[19,"Гибадуллина","Эвелина","Артуровна","2009-03-20","Ж","нет",5,5,73.21,100,{"$f":"Мальчики!L20","v":"Победитель"},"нет","Закирова Гульназ Анасовна",{"$f":"Мальчики!O20","v":"Муниципальное бюджетное общеобразовательное учреждение \"Школа №3\" г.Набережные Челны"}]
[20,"Хазиева","Разалина","Робертовна","2010-03-23","Ж","нет",5,5,68.11,100,{"$f":"Мальчики!L21","v":"Призёр"},"нет","Закирова Гульназ Анасовна",{"$f":"Мальчики!O21","v":"Муниципальное бюджетное общеобразовательное учреждение \"Школа №3\" г.Набережные Челны"}]
[21,"Габрахманова","Ралина","Ришатовна","2010-08-23","Ж","нет",5,5,57.47,100,{"$f":"Мальчики!L22","v":"Призёр"},"нет","Закирова Гульназ Анасовна",{"$f":"Мальчики!O22","v":"Муниципальное бюджетное общеобразовательное учреждение \"Школа №3\" г.Набережные Челны"}]
[22,"Султанова","Динара","Дилусовна","2009-10-14","Ж","нет",6,6,89.81,100,{"$f":"Мальчики!L23","v":"Победитель"},"нет","Закирова Гульназ Анасовна",{"$f":"Мальчики!O23","v":"Муниципальное бюджетное общеобразовательное учреждение \"Школа №3\" г.Набережные Челны"}]
[23,"Минсагирова","Азалия ","Рафисовна","2009-09-22","Ж","нет",6,6,78.37,100,{"$f":"Мальчики!L24","v":"Призёр"},"нет","Закирова Гульназ Анасовна",{"$f":"Мальчики!O24","v":"Муниципальное бюджетное общеобразовательное учреждение \"Школа №3\" г.Набережные Челны"}]
[24,"Салихова","Алина","Назиловна","2009-09-09","Ж","нет",6,6,65.19,100,{"$f":"Мальчики!L25","v":"Призёр"},"нет","Закирова Гульназ Анасовна",{"$f":"Мальчики!O25","v":"Муниципальное бюджетное общеобразовательное учреждение \"Школа №3\" г.Набережные Челны"}]
[25,"Хакимова","Асхадия","Ильясовна","2008-08-22","Ж","нет",7,7,75.22,100,{"$f":"Мальчики!L26","v":"Победитель"},"нет","Закирова Гульназ Анасовна",{"$f":"Мальчики!O26","v":"Муниципальное бюджетное общеобразовательное учреждение \"Школа №3\" г.Набережные Челны"}]
[26,"Зяббарова","Эндже","Ильшатовна","2008-10-24","Ж","нет",7,7,68.37,100,{"$f":"Мальчики!L27","v":"Призёр"},"нет","Закирова Гульназ Анасовна",{"$f":"Мальчики!O27","v":"Муниципальное бюджетное общеобразовательное учреждение \"Школа №3\" г.Набережные Челны"}]
[27,"Мамаева","Юлия","Михайловна","2008-09-14","Ж","нет",7,7,59.68,100,{"$f":"Мальчики!L28","v":"Призёр"},"нет","Закирова Гульназ Анасовна",{"$f":"Мальчики!O28","v":"Муниципальное бюджетное общеобразовательное учреждение \"Школа №3\" г.Набережные Челны"}]
[28,"Мамаева","Полина","Михайловна","2007-09-27","Ж","нет",8,8,83.74,100,{"$f":"Мальчики!L29","v":"Победитель"},"нет","Закирова Гульназ Анасовна",{"$f":"Мальчики!O29","v":"Муниципальное бюджетное общеобразовательное учреждение \"Школа №3\" г.Набережные Челны"}]
[29,"Байрамгулова","Лиана","Ильдаровна","2007-03-01","Ж","нет",8,8,80.16,100,{"$f":"Мальчики!L30","v":"Призёр"},"нет","Закирова Гульназ Анасовна",{"$f":"Мальчики!O30","v":"Муниципальное бюджетное общеобразовательное учреждение \"Школа №3\" г.Набережные Челны"}]
[30,"Шаехова","Алина","Рамисовна","2007-09-19","Ж","нет",8,8,74.54,100,{"$f":"Мальчики!L31","v":"Призёр"},"нет","Закирова Гульназ Анасовна",{"$f":"Мальчики!O31","v":"Муниципальное бюджетное общеобразовательное учреждение \"Школа №3\" г.Набережные Челны"}]
[31,"Хафизова","Гульназ","Фаритовна","2006-04-07","Ж","нет",9,9,63.28,100,{"$f":"Мальчики!L32","v":"Победитель"},"нет","Закирова Гульназ Анасовна",{"$f":"Мальчики!O32","v":"Муниципальное бюджетное общеобразовательное учреждение \"Школа №3\" г.Набережные Челны"}]
[32,"Сулейманова","Полина","Рустемовна","2006-05-28","Ж","нет",9,9,61.36,100,{"$f":"Мальчики!L33","v":"Призёр"},"нет","Закирова Гульназ Анасовна",{"$f":"Мальчики!O33","v":"Муниципальное бюджетное общеобразовательное учреждение \"Школа №3\" г.Набережные Челны"}]
[33,"Шамсиева","Миляуша","Ильгамовна","2006-03-24","Ж","нет",9,9,55.74,100,{"$f":"Мальчики!L34","v":"Призёр"},"нет","Закирова Гульназ Анасовна",{"$f":"Мальчики!O34","v":"Муниципальное бюджетное общеобразовательное учреждение \"Школа №3\" г.Набережные Челны"}]
[34,"Кульпанович","Карина","Сергеевна","2006-01-30","Ж","нет",10,10,82.85,100,{"$f":"Мальчики!L35","v":"Победитель"},"нет","Сергеев Вадим Анатольевич",{"$f":"Мальчики!O35","v":"Муниципальное бюджетное общеобразовательное учреждение \"Школа №3\" г.Набережные Челны"}]
[35,"Кашапова","Дилюса","Дилаисовна","2005-04-15","Ж","нет",10,10,76.64,100,{"$f":"Мальчики!L36","v":"Призёр"},"нет","Сергеев Вадим Анатольевич",{"$f":"Мальчики!O36","v":"Муниципальное бюджетное общеобразовательное учреждение \"Школа №3\" г.Набережные Челны"}]
[36,"Хузина","Лейла","Рамилевна","2005-11-10","Ж","нет",10,10,66.18,100,{"$f":"Мальчики!L37","v":"Призёр"},"нет","Сергеев Вадим Анатольевич",{"$f":"Мальчики!O37","v":"Муниципальное бюджетное общеобразовательное учреждение \"Школа №3\" г.Набережные Челны"}]

{"sheet":"Девочки","index":1,"n_rows":19,"n_cols":15,"rows_kept":19}
[{"$f":"Мальчики!A1","v":"№"},{"$f":"Мальчики!B1","v":"Фамилия"},{"$f":"Мальчики!C1","v":"Имя"},{"$f":"Мальчики!D1","v":"Отчество"},{"$f":"Мальчики!E1","v":"Дата рождения"},{"$f":"Мальчики!F1","v":"Пол"},{"$f":"Мальчики!G1","v":"Участник с ОВЗ (да/нет)"},{"$f":"Мальчики!H1","v":"Класс обучения"},{"$f":"Мальчики!I1","v":"Класс участия"},{"$f":"Мальчики!J1","v":"Балл"},{"$f":"Мальчики!K1","v":"Максимальный балл"},{"$f":"Мальчики!L1","v":"Статус"},{"$f":"Мальчики!M1","v":"Призёр муниципального этапа прошлого года"},{"$f":"Мальчики!N1","v":"ФИО учителя"},{"$f":"Мальчики!O1","v":"Место работы учителя"}]
[{"$f":"Мальчики!A2","v":1},"Гибадуллина","Эвелина","Артуровна","2009-03-20","Ж","нет",5,5,73,100,{"$f":"Мальчики!L2","v":"Победитель"},"нет","Закирова Гульназ Анасовна",{"$f":"Мальчики!O2","v":"Муниципальное бюджетное общеобразовательное учреждение \"Школа №3\" г.Набережные Челны"}]
[{"$f":"Мальчики!A3","v":2},"Хазиева","Разалина","Робертовна","2010-03-23","Ж","нет",5,5,68,100,{"$f":"Мальчики!L3","v":"Призёр"},"нет","Закирова Гульназ Анасовна",{"$f":"Мальчики!O3","v":"Муниципальное бюджетное общеобразовательное учреждение \"Школа №3\" г.Набережные Челны"}]
[{"$f":"Мальчики!A4","v":3},"Габрахманова","Ралина","Ришатовна","2010-08-23","Ж","нет",5,5,57,100,{"$f":"Мальчики!L4","v":"Призёр"},"нет","Закирова Гульназ Анасовна",{"$f":"Мальчики!O4","v":"Муниципальное бюджетное общеобразовательное учреждение \"Школа №3\" г.Набережные Челны"}]
[{"$f":"Мальчики!A5","v":4},"Султанова","Динара","Дилусовна","2009-10-14","Ж","нет",6,6,89,100,{"$f":"Мальчики!L5","v":"Победитель"},"нет","Закирова Гульназ Анасовна",{"$f":"Мальчики!O5","v":"Муниципальное бюджетное общеобразовательное учреждение \"Школа №3\" г.Набережные Челны"}]
[{"$f":"Мальчики!A6","v":5},"Минсагирова","Азалия ","Рафисовна","2009-09-22","Ж","нет",6,6,78,100,{"$f":"Мальчики!L6","v":"Призёр"},"нет","Закирова Гульназ Анасовна",{"$f":"Мальчики!O6","v":"Муниципальное бюджетное общеобразовательное учреждение \"Школа №3\" г.Набережные Челны"}]
[{"$f":"Мальчики!A7","v":6},"Салихова","Алина","Назиловна","2009-09-09","Ж","нет",6,6,65,100,{"$f":"Мальчики!L7","v":"Призёр"},"нет","Закирова Гульназ Анасовна",{"$f":"Мальчики!O7","v":"Муниципальное бюджетное общеобразовательное учреждение \"Школа №3\" г.Набережные Челны"}]
[{"$f":"Мальчики!A8","v":7},"Хакимова","Асхадия","Ильясовна","2008-08-22","Ж","нет",7,7,75,100,{"$f":"Мальчики!L8","v":"Победитель"},"нет","Закирова Гульназ Анасовна",{"$f":"Мальчики!O8","v":"Муниципальное бюджетное общеобразовательное учреждение \"Школа №3\" г.Набережные Челны"}]
[{"$f":"Мальчики!A9","v":8},"Зяббарова","Эндже","Ильшатовна","2008-10-24","Ж","нет",7,7,68,100,{"$f":"Мальчики!L9","v":"Призёр"},"нет","Закирова Гульназ Анасовна",{"$f":"Мальчики!O9","v":"Муниципальное бюджетное общеобразовательное учреждение \"Школа №3\" г.Набережные Челны"}]
[{"$f":"Мальчики!A10","v":9},"Мамаева","Юлия","Михайловна","2008-09-14","Ж","нет",7,7,59,100,{"$f":"Мальчики!L10","v":"Призёр"},"нет","Закирова Гульназ Анасовна",{"$f":"Мальчики!O10","v":"Муниципальное бюджетное общеобразовательное учреждение \"Школа №3\" г.Набережные Челны"}]
[{"$f":"Мальчики!A11","v":10},"Мамаева","Полина","Михайловна","2007-09-27","Ж","нет",8,8,83,100,{"$f":"Мальчики!L11","v":"Победитель"},"нет","Закирова Гульназ Анасовна",{"$f":"Мальчики!O11","v":"Муниципальное бюджетное общеобразовательное учреждение \"Школа №3\" г.Набережные Челны"}]
[{"$f":"Мальчики!A12","v":11},"Байрамгулова","Лиана","Ильдаровна","2007-03-01","Ж","нет",8,8,80,100,{"$f":"Мальчики!L12","v":"Призёр"},"нет","Закирова Гульназ Анасовна",{"$f":"Мальчики!O12","v":"Муниципальное бюджетное общеобразовательное учреждение \"Школа №3\" г.Набережные Челны"}]
[{"$f":"Мальчики!A13","v":12},"Шаехова","Алина","Рамисовна","2007-09-19","Ж","нет",8,8,74,100,{"$f":"Мальчики!L13","v":"Призёр"},"нет","Закирова Гульназ Анасовна",{"$f":"Мальчики!O13","v":"Муниципальное бюджетное общеобразовательное учреждение \"Школа №3\" г.Набережные Челны"}]
[{"$f":"Мальчики!A14","v":13},"Хафизова","Гульназ","Фаритовна","2006-04-07","Ж","нет",9,9,63,100,{"$f":"Мальчики!L14","v":"Победитель"},"нет","Закирова Гульназ Анасовна",{"$f":"Мальчики!O14","v":"Муниципальное бюджетное общеобразовательное учреждение \"Школа №3\" г.Набережные Челны"}]
[{"$f":"Мальчики!A15","v":14},"Сулейманова","Полина","Рустемовна","2006-05-28","Ж","нет",9,9,61,100,{"$f":"Мальчики!L15","v":"Призёр"},"нет","Закирова Гульназ Анасовна",{"$f":"Мальчики!O15","v":"Муниципальное бюджетное общеобразовательное учреждение \"Школа №3\" г.Набережные Челны"}]
[{"$f":"Мальчики!A16","v":15},"Шамсиева","Миляуша","Ильгамовна","2006-03-24","Ж","нет",9,9,55,100,{"$f":"Мальчики!L16","v":"Призёр"},"нет","Закирова Гульназ Анасовна",{"$f":"Мальчики!O16","v":"Муниципальное бюджетное общеобразовательное учреждение \"Школа №3\" г.Набережные Челны"}]
[{"$f":"Мальчики!A17","v":16},"Кульпанович","Карина","Сергеевна","2006-01-30","Ж","нет",10,10,82,100,{"$f":"Мальчики!L17","v":"Победитель"},"нет","Сергеев Вадим Анатольевич",{"$f":"Мальчики!O17","v":"Муниципальное бюджетное общеобразовательное учреждение \"Школа №3\" г.Набережные Челны"}]
[{"$f":"Мальчики!A18","v":17},"Кашапова","Дилюса","Дилаисовна","2005-04-15","Ж","нет",10,10,76,100,{"$f":"Мальчики!L18","v":"Призёр"},"нет","Сергеев Вадим Анатольевич",{"$f":"Мальчики!O18","v":"Муниципальное бюджетное общеобразовательное учреждение \"Школа №3\" г.Набережные Челны"}]
[{"$f":"Мальчики!A19","v":18},"Хузина","Лейла","Рамилевна","2005-11-10","Ж","нет",10,10,66,100,{"$f":"Мальчики!L19","v":"Призёр"},"нет","Сергеев Вадим Анатольевич",{"$f":"Мальчики!O19","v":"Муниципальное бюджетное общеобразовательное учреждение \"Школа №3\" г.Набережные Челны"}]